[Event "AZE-ch Men 2019"]
[Site "Baku"]
[Date "2019.01.24"]
[Round "9"]
[White "Shahaliyev, Ismayil"]
[Black "Bashirli, Nail"]
[Result "0-1"]
[ECO "B52"]
[WhiteElo "2389"]
[BlackElo "2324"]
[Annotator "NA"]
[PlyCount "96"]
[EventDate "2019.01.16"]
[EventType "swiss"]
[EventCountry "AZE"]
[SourceTitle "playchess.com"]
[Source "ChessBase"]
[SourceQuality "1"]
[TimeControl "40/5400+30:1800+30"]

{[%evp 9,95,22,23,15,23,32767,12,32767,7,-22,0,0,-13,-14,-16,-14,32767,32767,-22,-47,-47,-51,32767,32767,-116,-128,-103,32767,-117,-114,32767,32767,-124,32767,-147,-146,32767,-116,-118,-174,-107,32767,-91,-164,-136,-167,-145,32767,-213,32767,32767,32767,-166,-182,-182,-220,-169,32767,-129,32767,-212,-247,-212,-224,32767,32767,32767,-332,-345,-444,32767,-1391,32767,-1399,-1508,-1395,-1295,-29988,-1555,-996,32767,-29996,32767,-29997,-29998,-29998,-29999,-29999]} 1. e4 {[%emt 0:00:29]} c5 {[%emt 0:05:01]} 2. Nf3 {[%emt 0:00:06]} d6 {[%emt 0:00:03]} 3. Bb5+ {[%emt 0:00:05]} Bd7 {[%emt 0:01:05]} 4. Bxd7+ {[%emt 0:00:11]} Nxd7 {[%emt 0:00:03]} 5. O-O {[%emt 0:00:41]} Ngf6 {[%emt 0:00:11]} 6. Re1 {[%emt 0:04:05]} g6 {[%emt 0:04:56]} 7. b3 {[%emt 0:04:19]} Bg7 {[%emt 0:02:08] B52: Sicilian: Moscow Variation with 3...Bd7} 8. Bb2 {[%emt 0:00:05]} O-O {[%emt 0:00:54] LiveBook: 3 Games} 9. e5 {[%emt 0:21:08]} (9. d4 cxd4 10. Nxd4 Nc5 11. Nc3 a6 12. a4 Rc8 13. a5 e6 14. Qe2 Qc7 15. Red1 {0-1 (29) Vazquez,G (2296)-Delgado Ramirez,N (2587) Paraguay 2012}) 9... dxe5 {[%emt 0:12:50]} 10. Nxe5 {[%emt 0:00:18]} Nd5 $146 {[%emt 0:04:37]} ({Predecessor:} 10... Nxe5 11. Bxe5 b6 12. d3 Nd5 13. Bxg7 Kxg7 14. h3 e6 15. Nd2 {½-½ (32) Rudkovsky,A-Geilenko,D Nikolaev 2000}) 11. Qf3 {[%emt 0:05:11]} Nxe5 {[%emt 0:04:15]} 12. Bxe5 {[%emt 0:00:23]} f6 {[%emt 0:00:03]} 13. Bb2 {[%emt 0:00:15]} e5 {[%emt 0:00:03]} 14. Nc3 {[%emt 0:10:04]} Nb4 $1 {[%emt 0:00:13]} 15. Rac1 {[%emt 0:03:08]} Rf7 {[%emt 0:07:57]} 16. Ba3 {[%emt 0:08:11]} f5 {[%emt 0:06:27]} 17. Qe3 {[%emt 0:04:55]} b6 {[%emt 0:01:41]} 18. Bxb4 {[%emt 0:03:42]} cxb4 {[%emt 0:00:08]} 19. Nb1 {[%emt 0:00:02]} Rd7 {[%emt 0:13:08]} 20. a3 {[%emt 0:05:33]} bxa3 {[%emt 0:03:32]} 21. b4 {[%emt 0:02:26]} e4 {[%emt 0:00:21]} 22. Qxa3 {[%emt 0:00:47]} Bd4 {[%emt 0:12:21]} 23. Rcd1 {[%emt 0:09:03]} Qh4 {[%emt 0:02:29]} 24. Qg3 {[%emt 0:11:02]} (24. Re2 $17 {might work better.}) 24... Qf6 {[%emt 0:03:34]} 25. Kh1 {[%emt 0:01:40]} Rad8 {[%emt 0:07:42]} 26. Qb3+ {[%emt 0:03:01]} Kg7 {[%emt 0:00:40]} 27. Rf1 {[%emt 0:00:58]} Qh4 {[%emt 0:03:03]} 28. Qg3 {[%emt 0:01:20]} Qxg3 {[%emt 0:01:29]} 29. hxg3 {[%emt 0:00:02]} Be5 {[%emt 0:00:41]} 30. Rde1 {[%emt 0:00:45]} Bd6 {[%emt 0:01:51]} 31. b5 {[%emt 0:00:57]} h5 {[%emt 0:00:03]} 32. Re3 {[%emt 0:00:27]} Bc5 {[%emt 0:01:00]} 33. Rb3 {[%emt 0:00:18]} g5 {[%emt 0:00:48]} 34. f3 {[%emt 0:00:27] [#]} e3 $1 {[%emt 0:00:29]} 35. dxe3 {[%emt 0:00:08] [#]} Rd1 $1 {[%emt 0:00:03]} 36. Rxd1 {[%emt 0:00:42]} Rxd1+ {[%emt 0:00:03]} 37. Kh2 {[%emt 0:00:02]} Re1 {[%emt 0:00:39]} 38. g4 {[%emt 0:01:17]} fxg4 {[%emt 0:00:19]} (38... hxg4 $2 39. fxg4 Bd6+ 40. g3 $19) 39. Kg3 {[%emt 0:00:25]} Rf1 {[%emt 0:00:52]} 40. Nd2 {[%emt 0:00:00]} Bd6+ {[%emt 0:00:00]} 41. f4 {[%emt 0:03:49]} gxf4+ {[%emt 0:01:48]} 42. Kh4 {[%emt 0:00:28] [#]} f3 $1 {[%emt 0:03:58]} 43. Nxf3 {[%emt 0:08:23]} gxf3 {[%emt 0:00:18]} (43... Kh6 $142 44. Ng5 Rh1+ 45. Nh3 gxh3 46. g4 h2 47. Rd3 Rg1 48. Rxd6+ Kg7 49. Kg5 Rxg4+ 50. Kf5 h1=Q 51. Rd7+ Kf8 52. Ke6 Qe4+ 53. Kd6 Qxe3 54. Kc7 Qe8 55. Rh7 Kg8 56. Rd7 Rc4+ 57. Kd6 Rd4+ 58. Kc7 Rxd7+ 59. Kc6 Qe6#) 44. gxf3 {[%emt 0:00:04]} Kg6 {[%emt 0:00:15]} 45. f4 {[%emt 0:00:26]} Rf3 {[%emt 0:00:09]} 46. f5+ {[%emt 0:02:14]} Kh6 {[%emt 0:00:03]} 47. f6 {[%emt 0:01:25]} Be5 {[%emt 0:00:02]} 48. f7 {[%emt 0:01:18]} Bf6# {[%emt 0:00:05]} 0-1

[Event "AZE-ch Men 2019"]
[Site "Baku"]
[Date "2019.01.24"]
[Round "9"]
[White "Guliev, Logman"]
[Black "Jafarli, Babak"]
[Result "0-1"]
[ECO "B31"]
[WhiteElo "2322"]
[BlackElo "2128"]
[Annotator "NA"]
[PlyCount "72"]
[EventDate "2019.01.16"]
[EventType "swiss"]
[EventCountry "AZE"]
[SourceTitle "playchess.com"]
[Source "ChessBase"]
[SourceQuality "1"]
[TimeControl "40/5400+30:1800+30"]

1. e4 {[%emt 0:00:00]} c5 {[%emt 0:00:00]} 2. Nf3 {[%emt 0:00:00]} Nc6 {[%emt 0:00:00]} 3. Bb5 {[%emt 0:00:40]} g6 {[%emt 0:00:05]} 4. O-O {[%emt 0:00:07]} Bg7 {[%emt 0:00:12]} 5. Re1 {[%emt 0:00:16]} Nf6 {[%emt 0:00:45]} 6. e5 {[%emt 0:00:14]} Nd5 {[%emt 0:00:06]} 7. Nc3 {[%emt 0:00:07]} Nc7 {[%emt 0:02:38]} 8. Bxc6 {[%emt 0:00:25]} dxc6 {[%emt 0:01:11]} 9. Ne4 {[%emt 0:00:34]} Ne6 {[%emt 0:00:40]} 10. d3 {[%emt 0:00:24]} h6 {[%emt 0:00:35] B31: Sicilian: 2...Nc6 3 Bb5 g6} 11. Be3 {[%emt 0:02:03]} b6 {[%emt 0:00:45]} 12. Qd2 {[%emt 0:06:30] LiveBook: 8 Games} Qc7 {[%emt 0:09:35]} (12... Nd4 13. Nxd4 cxd4 14. Bf4 Be6 15. h4 a5 16. c4 Bf5 17. Rab1 c5 18. a3 {½-½ (35) Baklan,V (2605)-Deac,B (2598) Sovata 2018}) 13. Bf4 $146 {[%emt 0:10:30]} ({Predecessor:} 13. h3 Bb7 14. a3 Rd8 15. b3 Qc8 16. Qc3 O-O 17. b4 f5 18. exf6 exf6 19. Bxh6 Bxh6 20. Nxf6+ Kh8 {½-½ (20) Pessoa,F (2407)-Soley,A (2284) IECG email 2006}) 13... Nxf4 {[%emt 0:04:35]} 14. Nd6+ $2 {[%emt 0:00:43]} (14. Qxf4 $11 g5 15. Qg3) 14... Kf8 {[%emt 0:00:37]} 15. Qxf4 {[%emt 0:00:14]} Be6 $2 {[%emt 0:00:13]} ({Black should play} 15... exd6 $17 16. exd6 Qd7) 16. Nc4 {[%emt 0:03:21]} g5 {[%emt 0:06:23]} 17. Qe3 {[%emt 0:01:30]} g4 {[%emt 0:05:40]} 18. Nh4 {[%emt 0:01:47]} Rd8 {[%emt 0:02:15]} 19. f4 {[%emt 0:01:19]} gxf3 {[%emt 0:00:38]} 20. Qxf3 {[%emt 0:00:11]} Rg8 {[%emt 0:01:01]} 21. Re2 $2 {[%emt 0:07:12] [#]} (21. Qe2 $11 {and White has nothing to worry.}) 21... b5 $1 {[%emt 0:05:45]} 22. Ne3 {[%emt 0:04:13]} Bxe5 {[%emt 0:01:11] Double Attack} 23. Nef5 {[%emt 0:00:11]} Bxh2+ {[%emt 0:08:37]} 24. Kh1 {[%emt 0:00:02]} Be5 {[%emt 0:00:07]} 25. Rf1 {[%emt 0:08:12]} Bf6 {[%emt 0:02:46]} ({Weaker is} 25... Bxa2 26. b3 $14) 26. Qh5 {[%emt 0:21:20]} Rd5 {[%emt 0:01:11]} 27. c4 {[%emt 0:01:37]} bxc4 {[%emt 0:00:57]} 28. dxc4 {[%emt 0:00:05]} Re5 {[%emt 0:00:06]} 29. Qxh6+ {[%emt 0:07:26]} Ke8 {[%emt 0:01:40]} 30. Qf4 {[%emt 0:00:05]} Bxf5 {[%emt 0:03:37]} 31. Nxf5 {[%emt 0:01:43] [#]} Rxf5 $1 {[%emt 0:00:24]} 32. Rxe7+ {[%emt 0:18:45]} Qxe7 {[%emt 0:01:54]} 33. Qb8+ {[%emt 0:00:21]} Kd7 {[%emt 0:00:46]} 34. Qb7+ {[%emt 0:02:56]} Kd6 {[%emt 0:00:06]} 35. Qxe7+ $19 {[%emt 0:00:24]} Kxe7 {[%emt 0:00:04]} 36. Rxf5 {[%emt 0:00:03]} Bxb2 {[%emt 0:00:10]} 0-1

[Event "AZE-ch Men 2019"]
[Site "Baku"]
[Date "2019.01.24"]
[Round "9"]
[White "Babazada, Khazar"]
[Black "Guliyev, Gasan"]
[Result "1-0"]
[ECO "C18"]
[WhiteElo "2299"]
[BlackElo "1997"]
[Annotator "NA"]
[PlyCount "111"]
[EventDate "2019.01.16"]
[EventType "swiss"]
[EventCountry "AZE"]
[SourceTitle "playchess.com"]
[Source "ChessBase"]
[SourceQuality "1"]
[TimeControl "40/5400+30:1800+30"]

{[%evp 10,110,2,32767,32767,32767,32767,32767,12,32767,32767,32767,32767,32767,15,32767,19,16,32767,-33,-52,-54,-31,-42,32767,32767,-29,32767,32767,-63,32767,32767,32767,-56,-52,-52,32767,32767,-51,32767,32767,32767,-55,-60,32767,32767,-47,32767,-10,32767,32767,32767,32767,32767,0,32767,32767,32767,1,32767,32767,32767,32767,4,69,32767,7,32767,67,65,32767,32767,32767,32767,330,388,32767,572,32767,783,1094,529,556,360,32767,32767,32767,685,461,605,625,502,382,430,635,424,471,32767,1864,32767,29986,29987,29990]} 1. e4 {[%emt 0:00:00]} e6 {[%emt 0:15:43]} 2. d4 {[%emt 0:00:00]} d5 {[%emt 0:00:18]} 3. Nc3 {[%emt 0:00:00]} Bb4 {[%emt 0:01:04]} 4. e5 {[%emt 0:00:00]} c5 {[%emt 0:00:03]} 5. a3 {[%emt 0:00:00]} Bxc3+ {[%emt 0:00:03]} 6. bxc3 {[%emt 0:00:00]} Nc6 {[%emt 0:01:17]} 7. Nf3 {[%emt 0:00:55]} Qa5 {[%emt 0:01:19]} 8. Bd2 {[%emt 0:00:05]} c4 {[%emt 0:01:39]} 9. a4 {[%emt 0:00:57]} Nge7 {[%emt 0:05:02]} 10. h4 {[%emt 0:00:26] C19: French: 3 Nc3 Bb4: Main line: 7 Nf3 and 7 a4} (10. Ng5 h6 11. Nh3 Bd7 12. Nf4 O-O-O 13. Nh5 Rh7 14. g3 Rf8 15. Bh3 f5 16. exf6 gxf6 17. O-O Ng8 {1-0 (33) Sethuraman,S (2631)-Puranik,A (2520) Sharjah 2018}) 10... Bd7 {[%emt 0:02:20]} 11. h5 {[%emt 0:00:41]} h6 {[%emt 0:00:14] LiveBook: 12 Games} 12. Nh4 {[%emt 0:03:14]} O-O-O {[%emt 0:01:55]} 13. Be2 {[%emt 0:01:37]} g5 {[%emt 0:06:49]} 14. Nf3 $146 {[%emt 0:06:51]} ({White should play Predecessor:} 14. hxg6 $1 $14 fxg6 15. Bg4 (15. g3 g5 16. Ng2 {0-1 (37) De Vreugt,D (2285)-Bodicker,R (2125) Haarlem 1997})) 14... Ng8 {[%emt 0:04:30]} 15. Nh2 {[%emt 0:01:41]} f5 {[%emt 0:04:15]} 16. Qc1 {[%emt 0:02:26]} Nge7 {[%emt 0:01:27]} 17. Qa3 {[%emt 0:01:38]} Kb8 {[%emt 0:01:23]} 18. Kd1 {[%emt 0:11:19]} Nc8 {[%emt 0:05:48]} 19. f4 {[%emt 0:00:53]} g4 {[%emt 0:00:56]} 20. Nf1 {[%emt 0:00:45]} b6 {[%emt 0:14:09]} 21. Ne3 {[%emt 0:00:54]} Qa6 {[%emt 0:00:41]} 22. Ke1 Ka8 {[%emt 0:15:42]} 23. Kf2 {[%emt 0:01:18]} Qb7 {[%emt 0:07:15]} 24. g3 {[%emt 0:02:20]} Be8 {[%emt 0:02:26]} 25. Bf1 {[%emt 0:00:20]} N8e7 {[%emt 0:01:21]} 26. Bg2 {[%emt 0:00:53]} Na5 {[%emt 0:00:39]} 27. Qa2 {[%emt 0:00:30]} Bc6 {[%emt 0:03:05]} 28. Bc1 {[%emt 0:00:07]} Qd7 {[%emt 0:00:46]} 29. Ba3 {[%emt 0:00:24]} Rb8 {[%emt 0:00:31]} 30. Bb4 {[%emt 0:00:23]} Rb7 {[%emt 0:01:06]} 31. Qa3 {[%emt 0:01:47]} Rc8 {[%emt 0:00:17]} 32. Rhb1 {[%emt 0:00:11]} Rcb8 {[%emt 0:00:26]} 33. Ke2 {[%emt 0:01:33]} Qe8 {[%emt 0:00:49]} 34. Kd2 {[%emt 0:01:18]} Qd7 {[%emt 0:00:29]} 35. Qc1 {[%emt 0:00:45]} Ng8 {[%emt 0:00:33]} 36. Qh1 {[%emt 0:00:29]} Qe8 {[%emt 0:00:18]} (36... Rc8 $11) 37. Rc1 {[%emt 0:02:00]} Rc8 {[%emt 0:00:21]} 38. Rcb1 {[%emt 0:00:53]} Rcb8 {[%emt 0:01:02]} 39. Bxa5 {[%emt 0:01:13]} bxa5 {[%emt 0:00:06]} 40. Rxb7 {[%emt 0:00:00]} Kxb7 {[%emt 0:00:00]} 41. Nxc4 {[%emt 0:00:55]} Kc7 {[%emt 0:03:53]} 42. Nxa5 {[%emt 0:00:35]} Bxa4 {[%emt 0:00:05]} 43. Qc1 {[%emt 0:00:26]} Qb5 {[%emt 0:05:13]} 44. Qa3 {[%emt 0:01:10]} Qxa5 {[%emt 0:00:06]} 45. Qxa4 {[%emt 0:00:29]} Qxa4 {[%emt 0:00:01]} 46. Rxa4 {[%emt 0:00:06]} Rb1 {[%emt 0:00:02]} 47. Rxa7+ {[%emt 0:00:39]} Kb6 {[%emt 0:00:11]} 48. Rg7 {[%emt 0:00:26]} Rg1 {[%emt 0:00:05]} 49. Bxd5 {[%emt 0:00:33]} ({Less strong is} 49. Rxg8 Rxg2+ 50. Ke1 Kc7 $16) 49... exd5 {[%emt 0:00:19]} 50. Rxg8 {[%emt 0:00:06]} Rg2+ {[%emt 0:01:42]} 51. Kc1 {[%emt 0:00:24]} Rxg3 {[%emt 0:00:21]} 52. Rf8 {[%emt 0:00:05]} Rh3 {[%emt 0:07:54]} 53. Rxf5 {[%emt 0:00:13]} Kb5 {[%emt 0:00:12]} 54. e6 {[%emt 0:00:43]} Kc4 {[%emt 0:04:20]} 55. Kb2 {[%emt 0:00:08]} Re3 {[%emt 0:00:49]} 56. Re5 {[%emt 0:00:11]} 1-0

[Event "AZE-ch Men 2019"]
[Site "Baku"]
[Date "2019.01.24"]
[Round "9"]
[White "Abbasov, Amil"]
[Black "Guliev, Sarhan"]
[Result "0-1"]
[ECO "C54"]
[WhiteElo "2190"]
[BlackElo "2342"]
[Annotator "NA"]
[PlyCount "80"]
[EventDate "2019.01.16"]
[EventType "swiss"]
[EventCountry "AZE"]
[SourceTitle "playchess.com"]
[Source "ChessBase"]
[SourceQuality "1"]
[TimeControl "40/5400+30:1800+30"]

{[%evp 8,78,16,0,32767,32767,32767,32767,32767,32767,0,0,10,6,34,32767,32767,32767,32767,16,32767,32767,32767,32767,32767,32767,32767,6,32767,0,32767,0,16,32767,6,-23,0,32767,0,-88,-98,-81,-74,32767,32767,32767,-53,32767,-46,-60,-75,32767,-59,32767,-31,-31,-17,32767,-26,32767,32767,-43,32767,-23,-5,32767,32767,32767,32767,32767,32767,32767,-29988]} 1. e4 {[%emt 0:06:10]} e5 {[%emt 0:00:00]} 2. Nf3 {[%emt 0:00:21]} Nc6 {[%emt 0:00:00]} 3. Bc4 {[%emt 0:00:39]} Bc5 {[%emt 0:03:00]} 4. c3 {[%emt 0:00:43]} Nf6 {[%emt 0:00:29]} 5. d4 {[%emt 0:02:14]} exd4 {[%emt 0:00:07]} 6. e5 {[%emt 0:01:52]} d5 {[%emt 0:04:01]} 7. Bb5 {[%emt 0:00:41]} Ne4 {[%emt 0:00:33]} 8. cxd4 {[%emt 0:00:26]} Bb6 {[%emt 0:00:47]} 9. Be3 {[%emt 0:14:17] LiveBook: 69 Games C54: Giuoco Piano: 4 c3 Nf6, main lines with 5 d4 and 5 d3} (9. Nc3 O-O 10. Be3 Bg4 11. h3 Bh5 12. Qc2 Nxc3 13. bxc3 f6 14. exf6 Qxf6 15. Be2 Rae8 16. O-O Kh8 17. a4 Bg6 {1-0 (41) Jones,G (2682)-Jakovenko,D (2735) St Petersburg 2018}) 9... Bd7 {[%emt 0:11:10]} 10. Qb3 {[%emt 0:24:58]} Ne7 {[%emt 0:05:46]} 11. Bxd7+ $146 {[%emt 0:01:45]} ({Predecessor:} 11. Be2 Bg4 12. h3 Bh5 13. Nc3 O-O 14. Rd1 c6 15. g4 Bg6 16. Nh4 Ba5 {1-0 (44) Zhang,Z (2613)-Wen,Y (2497) Jiangsu Wuxi 2008}) 11... Qxd7 {[%emt 0:00:02]} 12. Nc3 {[%emt 0:00:20]} O-O {[%emt 0:07:58]} 13. O-O {[%emt 0:01:54]} Nxc3 {[%emt 0:12:35]} 14. bxc3 {[%emt 0:03:07]} c6 {[%emt 0:10:33]} 15. a4 {[%emt 0:08:24]} Ba5 {[%emt 0:02:17]} 16. Bc1 {[%emt 0:00:22]} Rfe8 {[%emt 0:00:55]} 17. Ba3 {[%emt 0:00:27]} Ng6 {[%emt 0:00:56]} 18. Bb4 {[%emt 0:03:14]} Bc7 {[%emt 0:04:35]} 19. Ne1 {[%emt 0:06:15]} Nf4 {[%emt 0:03:51]} 20. Qd1 {[%emt 0:06:03]} f6 {[%emt 0:04:08]} 21. g3 $1 {[%emt 0:11:08]} Nh3+ {[%emt 0:05:15]} 22. Kg2 {[%emt 0:00:08]} Ng5 {[%emt 0:00:32]} 23. Qh5 {[%emt 0:00:24]} (23. f4 $11 Ne4 24. Nd3) 23... a5 {[%emt 0:05:00]} 24. exf6 {[%emt 0:01:36] [#]} Ne4 $1 {[%emt 0:02:08]} 25. Ba3 {[%emt 0:00:41]} Nxf6 {[%emt 0:01:05]} 26. Qd1 {[%emt 0:00:42]} Ne4 {[%emt 0:02:15]} 27. Qd3 {[%emt 0:00:16]} Re6 {[%emt 0:03:30]} 28. Bc1 {[%emt 0:02:53]} Rf8 {[%emt 0:00:43]} (28... g5 $142 29. Nf3 Rh6) 29. Ra2 {[%emt 0:01:10]} Qe8 {[%emt 0:01:08]} 30. Re2 {[%emt 0:01:03]} Qh5 {[%emt 0:02:29]} 31. f3 $1 {[%emt 0:00:30]} Ref6 {[%emt 0:00:44]} 32. Rh1 {[%emt 0:00:36]} Ng5 {[%emt 0:01:01]} 33. Bxg5 {[%emt 0:00:08]} Qxg5 {[%emt 0:00:01]} 34. Qe3 {[%emt 0:00:32]} Bf4 {[%emt 0:00:21]} 35. Qe7 {[%emt 0:00:13]} Bd2 {[%emt 0:00:40]} 36. h4 {[%emt 0:01:06]} Qh6 {[%emt 0:00:02]} 37. f4 {[%emt 0:00:26]} Bxf4 {[%emt 0:00:39]} 38. gxf4 {[%emt 0:00:33]} Qxf4 {[%emt 0:00:02]} 39. Rg1 {[%emt 0:00:38]} Qxh4 {[%emt 0:00:50]} 40. Nf3 {[%emt 0:00:00]} Rg6+ {[%emt 0:00:00]} 0-1

[Event "AZE-ch Men 2019"]
[Site "Baku"]
[Date "2019.01.24"]
[Round "9"]
[White "Isgandarov, Shahriyar"]
[Black "Davidov, Samir"]
[Result "1/2-1/2"]
[ECO "B00"]
[WhiteElo "2113"]
[BlackElo "2344"]
[Annotator "NA"]
[PlyCount "123"]
[EventDate "2019.01.16"]
[EventType "swiss"]
[EventCountry "AZE"]
[SourceTitle "playchess.com"]
[Source "ChessBase"]
[SourceQuality "1"]
[TimeControl "40/5400+30:1800+30"]

1. e4 {[%emt 0:03:27]} d6 {[%emt 0:08:03]} 2. d4 {[%emt 0:00:16]} Nf6 {[%emt 0:00:06]} 3. Bd3 {[%emt 0:00:33]} e5 {[%emt 0:00:18]} 4. c3 {[%emt 0:00:37]} Nc6 {[%emt 0:00:05]} 5. Ne2 {[%emt 0:01:00]} Bg4 {[%emt 0:00:33] B07: Pirc Defence: Miscellaneous Systems} (5... d5 6. exd5 Qxd5 7. O-O exd4 8. cxd4 Be7 9. Nbc3 Qd8 10. Bf4 Nb4 11. Bc4 c6 12. Be5 O-O 13. Nf4 Ng4 14. Qe2 Bg5 {0-1 (41) Salem,A (2591)-Petrosian,T (2641) Abu Dhabi 2014}) 6. f3 {[%emt 0:01:09]} Bd7 {[%emt 0:00:21]} 7. O-O {[%emt 0:00:50]} Be7 $146 {[%emt 0:00:38]} ({Predecessor:} 7... a5 8. Nd2 exd4 9. cxd4 Nb4 10. Bb1 Bb5 11. a3 Nc6 12. d5 Ne5 13. Kh1 {1-0 (52) Wu,Q (1825)-Gagnon,S (2034) Montreal 2010}) 8. d5 {[%emt 0:03:21]} Nb8 {[%emt 0:00:10]} 9. Na3 {[%emt 0:02:22]} c6 {[%emt 0:00:24]} 10. c4 {[%emt 0:01:21]} Qb6+ {[%emt 0:00:22]} 11. Kh1 {[%emt 0:00:13]} Na6 {[%emt 0:01:30]} 12. Rb1 {[%emt 0:02:27]} Nb4 {[%emt 0:00:29]} 13. Nc2 {[%emt 0:01:42]} Nxd3 {[%emt 0:00:55]} 14. Qxd3 {[%emt 0:00:02]} cxd5 {[%emt 0:00:07]} 15. exd5 {[%emt 0:01:13]} Rc8 {[%emt 0:00:26]} 16. Ng3 {[%emt 0:02:06]} O-O {[%emt 0:08:00]} 17. b3 {[%emt 0:03:47]} a5 {[%emt 0:01:52]} 18. a4 {[%emt 0:01:34]} Ne8 {[%emt 0:01:41]} 19. Be3 {[%emt 0:08:54]} Qd8 {[%emt 0:01:11]} 20. f4 {[%emt 0:01:32]} g6 {[%emt 0:01:00]} 21. f5 {[%emt 0:07:55]} Bg5 {[%emt 0:04:04]} 22. Ne4 {[%emt 0:06:28]} Bxf5 {[%emt 0:03:51]} 23. Rxf5 {[%emt 0:02:07]} ({Weaker is} 23. Bxg5 Qxg5 24. Na3 Bxe4 $17) 23... Bxe3 {[%emt 0:00:06]} 24. Nxe3 {[%emt 0:01:20]} gxf5 {[%emt 0:00:05]} 25. Nxf5 {[%emt 0:00:22]} f6 {[%emt 0:00:07]} 26. Qg3+ {[%emt 0:03:10]} Kh8 {[%emt 0:00:42]} 27. Nexd6 {[%emt 0:02:08]} Qd7 {[%emt 0:00:08]} 28. Nxe8 {[%emt 0:01:45]} Rcxe8 {[%emt 0:00:10]} 29. Rf1 {[%emt 0:00:51]} Rg8 {[%emt 0:01:16]} 30. Qh4 {[%emt 0:01:28]} Rg6 {[%emt 0:00:46]} 31. Ne3 {[%emt 0:03:56]} ({Better is} 31. Qf2 $16) 31... Rf8 {[%emt 0:02:42]} (31... Qd6 $11 {remains equal.}) 32. Qe4 {[%emt 0:01:27]} Qd6 {[%emt 0:03:05]} 33. Nf5 {[%emt 0:01:36]} Qb6 {[%emt 0:00:13]} 34. Qd3 {[%emt 0:03:09]} Rg4 {[%emt 0:06:40]} 35. d6 {[%emt 0:05:26]} Qc6 {[%emt 0:00:41]} 36. Qh3 {[%emt 0:03:05]} Rg5 {[%emt 0:03:36]} (36... Qe4 $1 $15 37. Ng3 Rf4) 37. Rd1 {[%emt 0:07:38]} Rd8 {[%emt 0:16:29]} 38. Rd5 {[%emt 0:04:52]} Qd7 {[%emt 0:07:51]} 39. Ng3 {[%emt 0:03:22]} (39. g4 $11) 39... Qxh3 {[%emt 0:03:57]} 40. gxh3 {[%emt 0:00:00] [#]} e4 $1 {[%emt 0:00:00]} 41. Rxg5 {[%emt 0:10:21]} fxg5 {[%emt 0:01:32]} 42. Nxe4 {[%emt 0:00:22]} Kg7 {[%emt 0:02:35]} 43. c5 {[%emt 0:05:21]} Kg6 {[%emt 0:01:22]} (43... Kf7 $19 44. Kg2 h6) 44. Nd2 {[%emt 0:04:25]} (44. Kg2 $17) 44... Rc8 {[%emt 0:04:49]} 45. d7 {[%emt 0:01:33]} Rd8 {[%emt 0:00:09]} 46. Nc4 {[%emt 0:00:50]} Kf6 {[%emt 0:00:47]} ({Better is} 46... Kf5 $19 47. Nxa5 Rxd7) 47. Nxa5 {[%emt 0:05:56]} Rxd7 {[%emt 0:00:16]} 48. b4 {[%emt 0:01:29]} Ke6 {[%emt 0:02:42]} 49. b5 {[%emt 0:04:19]} Kd5 {[%emt 0:00:45]} 50. c6 {[%emt 0:00:44]} bxc6 {[%emt 0:00:05]} 51. Nxc6 {[%emt 0:00:09]} Kc5 {[%emt 0:00:10]} 52. Kg2 {[%emt 0:01:45]} h6 $11 {[%emt 0:02:16]} (52... h5 $17 53. Ne5 Rd4) 53. h4 {[%emt 0:03:04]} gxh4 {[%emt 0:03:29]} 54. Kh3 {[%emt 0:00:46]} Rd2 {[%emt 0:00:38]} 55. Ne7 {[%emt 0:01:32]} Ra2 {[%emt 0:01:25]} 56. Nf5 {[%emt 0:01:25]} h5 {[%emt 0:00:18]} 57. Ng7 {[%emt 0:00:44]} Rxa4 {[%emt 0:00:06]} 58. Nxh5 {[%emt 0:00:05]} Kxb5 {[%emt 0:00:03]} 59. Nf6 {[%emt 0:00:06]} Kc5 {[%emt 0:03:31]} 60. Ng4 {[%emt 0:00:10]} Kd5 {[%emt 0:00:17]} 61. Kxh4 {[%emt 0:00:16]} Rxg4+ {[%emt 0:00:10]} 62. Kxg4 {[%emt 0:00:02]} 1/2-1/2